[Event "*** Titled Tuesday Blitz"]
[Site "Chess.com"]
[Date "2018.11.06"]
[Round "6"]
[White "Bad4life"]
[Black "sandager"]
[Result "0-1"]
[WhiteElo "2284"]
[BlackElo "2141"]
[TimeControl "180+2"]
[EndTime "14:20:28 PST"]
[Termination "sandager won by resignation"]

1. e4 {[%clk 0:03:01.9]} 1... e5 {[%clk 0:02:58]} 2. Nf3 {[%clk 0:03:03.1]} 2...
Nc6 {[%clk 0:02:58.7]} 3. Bb5 {[%clk 0:03:04.4]} 3... a6 {[%clk 0:02:59.6]} 4.
Bxc6 {[%clk 0:03:05.5]} 4... dxc6 {[%clk 0:02:58.9]} 5. d3 {[%clk 0:03:07.4]}
5... f6 {[%clk 0:02:57]} 6. Be3 {[%clk 0:03:08.3]} 6... Be6 {[%clk 0:02:56.6]}
7. Nbd2 {[%clk 0:03:09.6]} 7... Bd6 {[%clk 0:02:54.5]} 8. Nc4 {[%clk 0:03:04.9]}
8... Ne7 {[%clk 0:02:53.2]} 9. a4 {[%clk 0:02:57.8]} 9... Qd7 {[%clk 0:02:52.8]}
10. a5 {[%clk 0:02:55]} 10... O-O-O {[%clk 0:02:51.1]} 11. Qb1 {[%clk
0:02:54.7]} 11... c5 {[%clk 0:02:48.2]} 12. Nfd2 {[%clk 0:02:48.4]} 12... Nc6
{[%clk 0:02:47.8]} 13. Ra3 {[%clk 0:02:45.2]} 13... Nd4 {[%clk 0:02:39.8]} 14.
O-O {[%clk 0:02:37]} 14... Be7 {[%clk 0:02:36.3]} 15. Nb3 {[%clk 0:02:33.1]}
15... Qc6 {[%clk 0:02:18.7]} 16. Kh1 {[%clk 0:02:27.5]} 16... Bxc4 {[%clk
0:01:54.2]} 17. dxc4 {[%clk 0:02:26.1]} 17... Nxb3 {[%clk 0:01:51.3]} 18. cxb3
{[%clk 0:02:22.6]} 18... Rd7 {[%clk 0:01:48.9]} 19. Ra1 {[%clk 0:02:16.2]} 19...
Rhd8 {[%clk 0:01:49.7]} 20. f3 {[%clk 0:02:13.7]} 20... Rd3 {[%clk 0:01:49.4]}
21. Bg1 {[%clk 0:02:11.7]} 21... Rxb3 {[%clk 0:01:48.7]} 22. Qc2 {[%clk
0:02:12.7]} 22... Rbd3 {[%clk 0:01:48.3]} 23. Rfb1 {[%clk 0:02:04.7]} 23... Qd7
{[%clk 0:01:48]} 24. b4 {[%clk 0:02:04]} 24... Rd2 {[%clk 0:01:47.7]} 25. Qc1
{[%clk 0:02:05]} 25... Qd3 {[%clk 0:01:41.4]} 26. bxc5 {[%clk 0:01:59.3]} 26...
Rc2 {[%clk 0:01:39.4]} 27. Qe1 {[%clk 0:01:50]} 27... Qxc4 {[%clk 0:01:31.3]}
28. Rd1 {[%clk 0:01:42.6]} 28... Rxd1 {[%clk 0:01:10.8]} 29. Qxd1 {[%clk
0:01:38.7]} 29... Bxc5 {[%clk 0:01:10.5]} 30. Bxc5 {[%clk 0:01:24.7]} 30... Qxc5
{[%clk 0:01:10.5]} 31. f4 {[%clk 0:01:26.3]} 31... exf4 {[%clk 0:00:53.2]} 32.
Qg4+ {[%clk 0:01:27.5]} 32... Kb8 {[%clk 0:00:53.7]} 33. Qxf4 {[%clk 0:01:17.3]}
33... Qf2 {[%clk 0:00:47.2]} 34. Qg4 {[%clk 0:01:15.3]} 34... g5 {[%clk
0:00:40.8]} 35. Rg1 {[%clk 0:01:13.4]} 35... Re2 {[%clk 0:00:36.3]} 36. Qd7
{[%clk 0:00:56.6]} 36... Re1 {[%clk 0:00:29.1]} 37. Qd8+ {[%clk 0:00:51.8]}
37... Ka7 {[%clk 0:00:29.2]} 38. Qd4+ {[%clk 0:00:53.7]} 38... Qxd4 {[%clk
0:00:28.7]} 39. Rxe1 {[%clk 0:00:55.1]} 39... Qd2 {[%clk 0:00:29.4]} 40. Rf1
{[%clk 0:00:56.3]} 40... Qe3 {[%clk 0:00:28.4]} 41. h3 {[%clk 0:00:56.2]} 41...
Qxe4 {[%clk 0:00:28.9]} 42. Rxf6 {[%clk 0:00:57.9]} 42... Qe1+ {[%clk
0:00:29.4]} 43. Kh2 {[%clk 0:00:59.1]} 0-1

[Event "*** Titled Tuesday Blitz"]
[Site "Chess.com"]
[Date "2018.11.06"]
[Round "6"]
[White "Alexander_Moskalenko"]
[Black "joppie2"]
[Result "1-0"]
[WhiteElo "2873"]
[BlackElo "2689"]
[TimeControl "180+2"]
[EndTime "14:20:33 PST"]
[Termination "Alexander_Moskalenko won by resignation"]

1. d4 {[%clk 0:03:01.9]} 1... Nf6 {[%clk 0:03:00.4]} 2. Nf3 {[%clk 0:03:03.1]}
2... d5 {[%clk 0:02:59.9]} 3. c4 {[%clk 0:02:56.5]} 3... e6 {[%clk 0:03:00.7]}
4. e3 {[%clk 0:02:56.9]} 4... Be7 {[%clk 0:02:59.5]} 5. Nc3 {[%clk 0:02:58.8]}
5... a6 {[%clk 0:02:59.3]} 6. a3 {[%clk 0:02:58.6]} 6... O-O {[%clk 0:02:57.5]}
7. Bd2 {[%clk 0:02:59.8]} 7... c5 {[%clk 0:02:58.2]} 8. dxc5 {[%clk 0:02:59.8]}
8... Bxc5 {[%clk 0:02:59.2]} 9. b4 {[%clk 0:03:00.3]} 9... Be7 {[%clk
0:02:59.9]} 10. Rc1 {[%clk 0:03:00.3]} 10... Nc6 {[%clk 0:02:58.6]} 11. cxd5
{[%clk 0:02:57.5]} 11... exd5 {[%clk 0:02:58.8]} 12. Be2 {[%clk 0:02:55.9]}
12... d4 {[%clk 0:02:54.3]} 13. exd4 {[%clk 0:02:47.8]} 13... Nxd4 {[%clk
0:02:56.2]} 14. Nxd4 {[%clk 0:02:48.9]} 14... Qxd4 {[%clk 0:02:57.3]} 15. O-O
{[%clk 0:02:49.8]} 15... Be6 {[%clk 0:02:45.1]} 16. Be3 {[%clk 0:02:47.7]} 16...
Qh4 {[%clk 0:02:45.3]} 17. Qd4 {[%clk 0:02:46.6]} 17... Qxd4 {[%clk 0:02:37.3]}
18. Bxd4 {[%clk 0:02:48.5]} 18... Rfd8 {[%clk 0:02:38]} 19. Rfd1 {[%clk
0:02:49]} 19... Nd5 {[%clk 0:02:33.2]} 20. Bf3 {[%clk 0:02:49]} 20... Bg5 {[%clk
0:02:27.5]} 21. Ra1 {[%clk 0:02:38.8]} 21... Rac8 {[%clk 0:02:17.2]} 22. Ne4
{[%clk 0:02:38.6]} 22... Be7 {[%clk 0:02:01.3]} 23. Nc5 {[%clk 0:02:36.7]} 23...
Bxc5 {[%clk 0:01:58.6]} 24. Bxc5 {[%clk 0:02:38.6]} 24... h6 {[%clk 0:01:53.6]}
25. h4 {[%clk 0:02:38]} 25... Rd7 {[%clk 0:01:50.1]} 26. Rd2 {[%clk 0:02:30.4]}
26... b6 {[%clk 0:01:35.9]} 27. Bxd5 {[%clk 0:02:19.3]} 27... Rxd5 {[%clk
0:01:37.8]} 28. Rxd5 {[%clk 0:02:19.8]} 28... Bxd5 {[%clk 0:01:39.7]} 29. Bxb6
{[%clk 0:02:21.5]} 29... Rc4 {[%clk 0:01:41.5]} 30. Rd1 {[%clk 0:02:18.4]} 30...
Be6 {[%clk 0:01:37.8]} 31. Rd8+ {[%clk 0:02:16.1]} 31... Kh7 {[%clk 0:01:38.3]}
32. Ra8 {[%clk 0:02:17.6]} 32... Rc6 {[%clk 0:01:16.7]} 33. Bc5 {[%clk
0:02:13.3]} 33... Bc4 {[%clk 0:01:14.2]} 34. a4 {[%clk 0:01:56.8]} 34... Rg6
{[%clk 0:01:12.3]} 35. Rd8 {[%clk 0:01:47.1]} 35... Bb3 {[%clk 0:00:57.1]} 36.
b5 {[%clk 0:01:35.2]} 36... Bxa4 {[%clk 0:00:57.7]} 37. b6 {[%clk 0:01:36.3]}
37... Bc6 {[%clk 0:00:59.3]} 38. Rc8 {[%clk 0:00:55.9]} 38... Bxg2 {[%clk
0:00:58.7]} 39. Kh2 {[%clk 0:00:57.4]} 39... Be4 {[%clk 0:00:52.7]} 40. Rc7
{[%clk 0:00:52.7]} 40... Rc6 {[%clk 0:00:39.2]} 41. b7 {[%clk 0:00:44.6]} 41...
Rxc5 {[%clk 0:00:40.5]} 42. b8=Q {[%clk 0:00:46.2]} 1-0

[Event "*** Titled Tuesday Blitz"]
[Site "Chess.com"]
[Date "2018.11.06"]
[Round "6"]
[White "Assasin14"]
[Black "tactics321"]
[Result "0-1"]
[WhiteElo "2246"]
[BlackElo "2412"]
[TimeControl "180+2"]
[EndTime "14:20:33 PST"]
[Termination "tactics321 won by resignation"]

1. e4 {[%clk 0:03:01.9]} 1... c5 {[%clk 0:02:59.9]} 2. Nf3 {[%clk 0:02:54.6]}
2... Nc6 {[%clk 0:03:01.2]} 3. Bb5 {[%clk 0:02:55.1]} 3... g6 {[%clk 0:03:02.7]}
4. Bxc6 {[%clk 0:02:55.4]} 4... bxc6 {[%clk 0:03:04.6]} 5. d3 {[%clk 0:02:56.9]}
5... Bg7 {[%clk 0:03:05.4]} 6. O-O {[%clk 0:02:53.9]} 6... Nh6 {[%clk
0:03:02.9]} 7. c3 {[%clk 0:02:53.8]} 7... O-O {[%clk 0:03:01.2]} 8. d4 {[%clk
0:02:49.6]} 8... cxd4 {[%clk 0:03:00.2]} 9. cxd4 {[%clk 0:02:51.5]} 9... d5
{[%clk 0:03:01]} 10. e5 {[%clk 0:02:32.8]} 10... f6 {[%clk 0:02:57.6]} 11. Bf4
{[%clk 0:02:28.5]} 11... Nf7 {[%clk 0:02:56.5]} 12. Re1 {[%clk 0:02:25.3]} 12...
g5 {[%clk 0:02:54.9]} 13. Bg3 {[%clk 0:02:22]} 13... Bg4 {[%clk 0:02:42.8]} 14.
exf6 {[%clk 0:02:10.4]} 14... exf6 {[%clk 0:02:42.2]} 15. Nbd2 {[%clk
0:02:02.6]} 15... f5 {[%clk 0:02:33.5]} 16. Qa4 {[%clk 0:01:51.8]} 16... f4
{[%clk 0:02:28.4]} 17. Qxc6 {[%clk 0:01:38.5]} 17... fxg3 {[%clk 0:02:28.9]} 18.
hxg3 {[%clk 0:01:39.4]} 18... Qd6 {[%clk 0:02:27.6]} 19. Qa4 {[%clk 0:01:32.8]}
19... Bd7 {[%clk 0:02:20.4]} 20. Qa5 {[%clk 0:01:27.6]} 20... g4 {[%clk
0:02:14]} 21. Ne5 {[%clk 0:01:20.1]} 21... Nxe5 {[%clk 0:02:10.5]} 22. dxe5
{[%clk 0:01:22]} 22... Bxe5 {[%clk 0:02:11.4]} 23. Nc4 {[%clk 0:01:23]} 23...
dxc4 {[%clk 0:02:01.6]} 24. Rxe5 {[%clk 0:01:22.5]} 24... Qf6 {[%clk 0:01:55.5]}
25. Qd5+ {[%clk 0:00:52.1]} 25... Qf7 {[%clk 0:01:36.7]} 26. Rg5+ {[%clk
0:00:48.3]} 26... Kh8 {[%clk 0:01:37.6]} 27. Qd4+ {[%clk 0:00:47.4]} 27... Qf6
{[%clk 0:01:38.9]} 28. Qd2 {[%clk 0:00:43.6]} 28... Rad8 {[%clk 0:01:33.8]} 29.
Rf1 {[%clk 0:00:32.4]} 29... c3 {[%clk 0:01:28.7]} 30. Qxc3 {[%clk 0:00:29.4]}
30... Qxc3 {[%clk 0:01:27.6]} 31. bxc3 {[%clk 0:00:31.3]} 31... Rc8 {[%clk
0:01:24]} 32. Rc1 {[%clk 0:00:28]} 32... Rf6 {[%clk 0:01:08.7]} 33. c4 {[%clk
0:00:23.1]} 33... Rfc6 {[%clk 0:00:51.8]} 34. c5 {[%clk 0:00:23]} 34... h6
{[%clk 0:00:52.7]} 35. Rh5 {[%clk 0:00:22.1]} 35... Kg7 {[%clk 0:00:52.3]} 36.
Rc2 {[%clk 0:00:20.6]} 36... Kg6 {[%clk 0:00:51.4]} 37. Rd5 {[%clk 0:00:21.2]}
37... Be6 {[%clk 0:00:52.7]} 38. Re5 {[%clk 0:00:21.8]} 38... Kf6 {[%clk
0:00:52.6]} 39. Rh5 {[%clk 0:00:23]} 39... Kg6 {[%clk 0:00:49.2]} 40. Re5 {[%clk
0:00:23.8]} 40... Bf5 {[%clk 0:00:50.6]} 41. Rc3 {[%clk 0:00:23.1]} 41... Kf6
{[%clk 0:00:52]} 42. Rd5 {[%clk 0:00:24.2]} 42... Ke6 {[%clk 0:00:53.6]} 43. Rd8
{[%clk 0:00:23.9]} 43... Rxd8 {[%clk 0:00:51.2]} 0-1

[Event "*** Titled Tuesday Blitz"]
[Site "Chess.com"]
[Date "2018.11.06"]
[Round "6"]
[White "eljanov"]
[Black "GukeshDommaraju"]
[Result "1-0"]
[WhiteElo "2824"]
[BlackElo "2668"]
[TimeControl "180+2"]
[EndTime "14:20:36 PST"]
[Termination "eljanov won by resignation"]

1. d4 {[%clk 0:03:00.4]} 1... d5 {[%clk 0:02:59.9]} 2. c4 {[%clk 0:03:00.5]}
2... c6 {[%clk 0:03:00.6]} 3. Nf3 {[%clk 0:03:01.7]} 3... Nf6 {[%clk 0:03:00.6]}
4. e3 {[%clk 0:03:03]} 4... e6 {[%clk 0:03:00.8]} 5. Bd3 {[%clk 0:03:02.8]} 5...
dxc4 {[%clk 0:03:01.1]} 6. Bxc4 {[%clk 0:03:03.7]} 6... b5 {[%clk 0:03:02.1]} 7.
Bd3 {[%clk 0:03:04.3]} 7... a6 {[%clk 0:03:03.3]} 8. a4 {[%clk 0:03:02.5]} 8...
Bb7 {[%clk 0:03:00.7]} 9. O-O {[%clk 0:03:02.4]} 9... Nbd7 {[%clk 0:03:00.7]}
10. Qe2 {[%clk 0:02:56.5]} 10... Be7 {[%clk 0:02:55.5]} 11. e4 {[%clk
0:02:55.2]} 11... O-O {[%clk 0:02:54.5]} 12. Nbd2 {[%clk 0:02:32.2]} 12... c5
{[%clk 0:02:41.8]} 13. axb5 {[%clk 0:02:32.7]} 13... axb5 {[%clk 0:02:42]} 14.
Rxa8 {[%clk 0:02:27.2]} 14... Bxa8 {[%clk 0:02:37.8]} 15. Bxb5 {[%clk
0:01:57.8]} 15... cxd4 {[%clk 0:02:36.8]} 16. e5 {[%clk 0:01:58.5]} 16... Nd5
{[%clk 0:02:35.5]} 17. Nb3 {[%clk 0:01:52.9]} 17... Nc7 {[%clk 0:02:14.6]} 18.
Bd3 {[%clk 0:01:53.2]} 18... Bxf3 {[%clk 0:02:14.7]} 19. gxf3 {[%clk 0:01:39.3]}
19... Nc5 {[%clk 0:02:02.8]} 20. Nxc5 {[%clk 0:01:38.8]} 20... Bxc5 {[%clk
0:02:03.5]} 21. Qc2 {[%clk 0:01:35.8]} 21... Qe7 {[%clk 0:01:59]} 22. Bxh7+
{[%clk 0:01:33.9]} 22... Kh8 {[%clk 0:02:00.1]} 23. Be4 {[%clk 0:01:30.3]} 23...
f5 {[%clk 0:01:51.9]} 24. exf6 {[%clk 0:01:29.9]} 24... gxf6 {[%clk 0:01:52.9]}
25. f4 {[%clk 0:01:24.4]} 25... f5 {[%clk 0:01:50.2]} 26. Bf3 {[%clk 0:01:24.6]}
26... Rg8+ {[%clk 0:01:50.1]} 27. Kh1 {[%clk 0:01:25.7]} 27... Bd6 {[%clk
0:01:13.4]} 28. Rg1 {[%clk 0:01:13.5]} 28... Rxg1+ {[%clk 0:01:11.7]} 29. Kxg1
{[%clk 0:01:14.6]} 29... Qg7+ {[%clk 0:01:01.7]} 30. Kf1 {[%clk 0:01:14.6]}
30... Qh6 {[%clk 0:00:54.3]} 31. Qd2 {[%clk 0:00:57]} 31... Qf6 {[%clk
0:00:41.5]} 32. b3 {[%clk 0:00:53.8]} 32... Nb5 {[%clk 0:00:36.8]} 33. Bb2
{[%clk 0:00:51.5]} 33... Nc3 {[%clk 0:00:37.7]} 34. Bxc3 {[%clk 0:00:51.5]}
34... dxc3 {[%clk 0:00:37.7]} 35. Qxd6 {[%clk 0:00:51]} 35... c2 {[%clk
0:00:38.7]} 36. Qb8+ {[%clk 0:00:52.1]} 36... Kg7 {[%clk 0:00:29.8]} 37. Qc7+
{[%clk 0:00:53.2]} 37... Kh6 {[%clk 0:00:26.5]} 38. Qxc2 {[%clk 0:00:53.7]}
38... Qa1+ {[%clk 0:00:28.1]} 39. Qd1 {[%clk 0:00:52.9]} 39... Qc3 {[%clk
0:00:28.8]} 40. h3 {[%clk 0:00:51.1]} 40... Kg7 {[%clk 0:00:26.4]} 41. Kg2
{[%clk 0:00:51.5]} 41... Kh6 {[%clk 0:00:26.8]} 42. Qd8 {[%clk 0:00:51.3]} 42...
Qg7+ {[%clk 0:00:27.1]} 43. Qg5+ {[%clk 0:00:52.4]} 43... Qxg5+ {[%clk
0:00:27.3]} 44. fxg5+ {[%clk 0:00:53.7]} 44... Kxg5 {[%clk 0:00:29.2]} 45. b4
{[%clk 0:00:55]} 1-0

[Event "*** Titled Tuesday Blitz"]
[Site "Chess.com"]
[Date "2018.11.06"]
[Round "6"]
[White "kleinebeer98"]
[Black "vovachesss"]
[Result "1-0"]
[WhiteElo "2609"]
[BlackElo "2445"]
[TimeControl "180+2"]
[EndTime "14:20:37 PST"]
[Termination "kleinebeer98 won by checkmate"]

1. e4 {[%clk 0:03:01.9]} 1... c6 {[%clk 0:02:54.2]} 2. d4 {[%clk 0:02:59.8]}
2... g6 {[%clk 0:02:55.5]} 3. f3 {[%clk 0:03:00.5]} 3... Bg7 {[%clk 0:02:56.6]}
4. Nc3 {[%clk 0:02:59.4]} 4... d6 {[%clk 0:02:56.3]} 5. Be3 {[%clk 0:03:00]}
5... Nd7 {[%clk 0:02:53.9]} 6. Qd2 {[%clk 0:02:59.9]} 6... b5 {[%clk 0:02:51.5]}
7. O-O-O {[%clk 0:02:56.6]} 7... b4 {[%clk 0:02:48.1]} 8. Nce2 {[%clk
0:02:53.2]} 8... a5 {[%clk 0:02:47]} 9. Kb1 {[%clk 0:02:51.5]} 9... Rb8 {[%clk
0:02:37.1]} 10. g4 {[%clk 0:02:43.7]} 10... h5 {[%clk 0:02:36.4]} 11. gxh5
{[%clk 0:02:43.7]} 11... Rxh5 {[%clk 0:02:35.4]} 12. Nf4 {[%clk 0:02:42.1]}
12... Rh8 {[%clk 0:02:34.6]} 13. h4 {[%clk 0:02:41.4]} 13... Ngf6 {[%clk
0:02:35.3]} 14. Ngh3 {[%clk 0:02:38.5]} 14... a4 {[%clk 0:02:32.5]} 15. Ng5
{[%clk 0:02:36.4]} 15... Nb6 {[%clk 0:01:38.7]} 16. Qxb4 {[%clk 0:02:24.5]}
16... Qc7 {[%clk 0:01:37.2]} 17. Qc3 {[%clk 0:02:07.1]} 17... Nh5 {[%clk
0:01:25.9]} 18. a3 {[%clk 0:02:00.6]} 18... c5 {[%clk 0:01:15.7]} 19. Nxh5
{[%clk 0:01:47.1]} 19... Rxh5 {[%clk 0:01:13.4]} 20. f4 {[%clk 0:01:20.5]} 20...
Bg4 {[%clk 0:01:10.6]} 21. f5 {[%clk 0:01:10.6]} 21... Bxd1 {[%clk 0:00:54.5]}
22. Bb5+ {[%clk 0:01:10]} 22... Kd8 {[%clk 0:00:26.3]} 23. Nxf7+ {[%clk
0:01:03.1]} 23... Kc8 {[%clk 0:00:23.5]} 24. Rxd1 {[%clk 0:00:59.3]} 24... cxd4
{[%clk 0:00:22]} 25. Ba6+ {[%clk 0:00:57.1]} 25... Kd7 {[%clk 0:00:21.9]} 26.
Qd3 {[%clk 0:00:26.8]} 26... dxe3 {[%clk 0:00:19.6]} 27. e5 {[%clk 0:00:28.2]}
27... Rxf5 {[%clk 0:00:18.5]} 28. exd6 {[%clk 0:00:28.5]} 28... exd6 {[%clk
0:00:17.7]} 29. Bb5+ {[%clk 0:00:24.7]} 29... Rxb5 {[%clk 0:00:05.2]} 30. Qxb5+
{[%clk 0:00:26.6]} 30... Ke7 {[%clk 0:00:06.5]} 31. Nxd6 {[%clk 0:00:22.4]}
31... Nc8 {[%clk 0:00:04.8]} 32. Qe8+ {[%clk 0:00:19.4]} 32... Kf6 {[%clk
0:00:05.4]} 33. Rf1# {[%clk 0:00:20.8]} 1-0

[Event "*** Titled Tuesday Blitz"]
[Site "Chess.com"]
[Date "2018.11.06"]
[Round "6"]
[White "olksuna"]
[Black "Msb2"]
[Result "0-1"]
[WhiteElo "2560"]
[BlackElo "2878"]
[TimeControl "180+2"]
[EndTime "14:20:40 PST"]
[Termination "Msb2 won by resignation"]

1. c4 {[%clk 0:03:01.9]} 1... e6 {[%clk 0:03:01.2]} 2. Nc3 {[%clk 0:02:56.4]}
2... d5 {[%clk 0:03:02.5]} 3. d4 {[%clk 0:02:56.4]} 3... Bb4 {[%clk 0:03:04.2]}
4. Nf3 {[%clk 0:02:51.5]} 4... Nf6 {[%clk 0:03:04.7]} 5. Qa4+ {[%clk 0:02:44.2]}
5... Nc6 {[%clk 0:03:05.1]} 6. Bg5 {[%clk 0:02:42.1]} 6... dxc4 {[%clk 0:03:04]}
7. e3 {[%clk 0:02:40.3]} 7... Bd7 {[%clk 0:03:04.7]} 8. Qc2 {[%clk 0:02:23.6]}
8... b5 {[%clk 0:03:05.6]} 9. a4 {[%clk 0:02:21.4]} 9... a6 {[%clk 0:03:00.5]}
10. Be2 {[%clk 0:02:21.8]} 10... O-O {[%clk 0:02:58.4]} 11. O-O {[%clk
0:02:21.5]} 11... Na5 {[%clk 0:02:55.6]} 12. e4 {[%clk 0:02:16.3]} 12... h6
{[%clk 0:02:46.7]} 13. Bh4 {[%clk 0:02:16.8]} 13... Be7 {[%clk 0:02:40.7]} 14.
axb5 {[%clk 0:02:04.1]} 14... axb5 {[%clk 0:02:40.4]} 15. Ne5 {[%clk 0:02:00.9]}
15... Be8 {[%clk 0:02:35]} 16. Rfd1 {[%clk 0:01:48.2]} 16... Nb3 {[%clk
0:01:49.9]} 17. Rxa8 {[%clk 0:01:47.2]} 17... Qxa8 {[%clk 0:01:51.8]} 18. d5
{[%clk 0:01:42.8]} 18... Nxd5 {[%clk 0:01:33.4]} 19. Nxd5 {[%clk 0:01:34.4]}
19... Bxh4 {[%clk 0:01:33.9]} 20. Nxc7 {[%clk 0:01:33.5]} 20... Qa7 {[%clk
0:01:35]} 21. Nxe8 {[%clk 0:01:29.9]} 21... Qxf2+ {[%clk 0:01:17.5]} 22. Kh1
{[%clk 0:01:30]} 22... Nd4 {[%clk 0:01:05.3]} 23. Rxd4 {[%clk 0:01:25]} 23...
Qxd4 {[%clk 0:01:07.2]} 24. Nf3 {[%clk 0:01:25.8]} 24... Qd8 {[%clk 0:00:51.7]}
25. Nd6 {[%clk 0:01:24.5]} 25... Qxd6 {[%clk 0:00:49.4]} 26. Nxh4 {[%clk
0:01:25.5]} 26... Ra8 {[%clk 0:00:45.2]} 27. g3 {[%clk 0:00:54.3]} 27... Ra1+
{[%clk 0:00:27]} 28. Kg2 {[%clk 0:00:54.3]} 28... Qb4 {[%clk 0:00:28.6]} 29. e5
{[%clk 0:00:18.8]} 29... Ra2 {[%clk 0:00:26.7]} 30. Qe4 {[%clk 0:00:19.8]} 30...
Qxb2 {[%clk 0:00:25]} 31. Kf3 {[%clk 0:00:17.6]} 31... g5 {[%clk 0:00:19]} 32.
Ng6 {[%clk 0:00:16.6]} 32... Qxe2+ {[%clk 0:00:17.6]} 33. Qxe2 {[%clk 0:00:17]}
33... Rxe2 {[%clk 0:00:19.5]} 34. Ne7+ {[%clk 0:00:17.7]} 34... Kf8 {[%clk
0:00:21]} 35. Kxe2 {[%clk 0:00:17.4]} 35... Kxe7 {[%clk 0:00:22.3]} 0-1

[Event "*** Titled Tuesday Blitz"]
[Site "Chess.com"]
[Date "2018.11.06"]
[Round "6"]
[White "GMSrinath"]
[Black "AndrewMcStone"]
[Result "1-0"]
[WhiteElo "2806"]
[BlackElo "2133"]
[TimeControl "180+2"]
[EndTime "14:20:47 PST"]
[Termination "GMSrinath won by resignation"]

1. d4 {[%clk 0:03:01.9]} 1... Nf6 {[%clk 0:03:00]} 2. Nf3 {[%clk 0:03:02.8]}
2... g6 {[%clk 0:03:00.8]} 3. c4 {[%clk 0:03:03.9]} 3... Bg7 {[%clk 0:03:02.3]}
4. Nc3 {[%clk 0:03:05.2]} 4... O-O {[%clk 0:03:03.7]} 5. e4 {[%clk 0:03:06.4]}
5... d6 {[%clk 0:03:05.1]} 6. Be2 {[%clk 0:03:07.9]} 6... e5 {[%clk 0:03:05.7]}
7. O-O {[%clk 0:03:09.4]} 7... exd4 {[%clk 0:03:04.5]} 8. Nxd4 {[%clk
0:03:11.3]} 8... Re8 {[%clk 0:03:05.8]} 9. f3 {[%clk 0:03:12.3]} 9... c6 {[%clk
0:03:04.1]} 10. Kh1 {[%clk 0:03:12.8]} 10... Nbd7 {[%clk 0:03:04.6]} 11. Nc2
{[%clk 0:03:09.9]} 11... Nb6 {[%clk 0:02:59.7]} 12. Bf4 {[%clk 0:03:05]} 12...
d5 {[%clk 0:02:04.4]} 13. exd5 {[%clk 0:02:47]} 13... cxd5 {[%clk 0:02:04.3]}
14. c5 {[%clk 0:02:48.6]} 14... Nc4 {[%clk 0:01:32.4]} 15. b3 {[%clk 0:02:49.6]}
15... Nh5 {[%clk 0:00:55.2]} 16. Nxd5 {[%clk 0:02:28.5]} 16... Nxf4 {[%clk
0:00:49]} 17. Nxf4 {[%clk 0:02:30.4]} 17... Bxa1 {[%clk 0:00:44.7]} 18. Qxa1
{[%clk 0:02:32.3]} 18... Ne3 {[%clk 0:00:35.5]} 19. Nxe3 {[%clk 0:02:26.6]}
19... Rxe3 {[%clk 0:00:35.8]} 20. Bc4 {[%clk 0:02:28.5]} 20... Be6 {[%clk
0:00:12.9]} 21. Nxe6 {[%clk 0:02:13.5]} 21... fxe6 {[%clk 0:00:14.8]} 22. Re1
{[%clk 0:02:14.7]} 22... Rxe1+ {[%clk 0:00:14.6]} 23. Qxe1 {[%clk 0:02:16.6]}
23... Kg7 {[%clk 0:00:11.1]} 24. Qe5+ {[%clk 0:02:14.5]} 24... Qf6 {[%clk
0:00:10.2]} 25. Qc7+ {[%clk 0:02:15.3]} 25... Qf7 {[%clk 0:00:10.1]} 26. Qd6
{[%clk 0:02:16.8]} 26... Re8 {[%clk 0:00:08.5]} 27. h3 {[%clk 0:02:17.7]} 27...
Re7 {[%clk 0:00:07.3]} 28. Qb8 {[%clk 0:02:18.3]} 28... Rd7 {[%clk 0:00:06.6]}
29. Qe5+ {[%clk 0:02:12.6]} 29... Qf6 {[%clk 0:00:06.4]} 30. Qe4 {[%clk
0:02:14.5]} 30... g5 {[%clk 0:00:05.1]} 31. Kg1 {[%clk 0:02:03.1]} 31... Rd1+
{[%clk 0:00:05.5]} 32. Kf2 {[%clk 0:02:02.8]} 32... Qd4+ {[%clk 0:00:03]} 33.
Qxd4+ {[%clk 0:02:02.4]} 33... Rxd4 {[%clk 0:00:04.9]} 34. Ke3 {[%clk
0:02:00.4]} 34... Rd1 {[%clk 0:00:05.2]} 35. Ke2 {[%clk 0:02:01.8]} 35... Ra1
{[%clk 0:00:05]} 36. b4 {[%clk 0:02:03.1]} 36... Kf6 {[%clk 0:00:06]} 37. Ke3
{[%clk 0:02:04.5]} 37... Rc1 {[%clk 0:00:06.5]} 38. Kd4 {[%clk 0:02:03.9]} 38...
Rc2 {[%clk 0:00:05.6]} 39. b5 {[%clk 0:02:04.6]} 39... Rxg2 {[%clk 0:00:06.1]}
40. c6 {[%clk 0:02:05.7]} 40... bxc6 {[%clk 0:00:07]} 41. bxc6 {[%clk
0:02:07.6]} 41... Rd2+ {[%clk 0:00:07.8]} 42. Kc5 {[%clk 0:02:08.8]} 42... Ke7
{[%clk 0:00:08.4]} 43. Ba6 {[%clk 0:02:09.1]} 43... Rc2+ {[%clk 0:00:08.7]} 44.
Bc4 {[%clk 0:02:10.2]} 44... Rxc4+ {[%clk 0:00:08.8]} 45. Kxc4 {[%clk
0:02:12.1]} 45... Kd6 {[%clk 0:00:10.2]} 46. Kb5 {[%clk 0:02:12.8]} 46... h5
{[%clk 0:00:08.3]} 47. a4 {[%clk 0:02:10.3]} 47... e5 {[%clk 0:00:07.4]} 48. c7
{[%clk 0:02:06.2]} 48... Kxc7 {[%clk 0:00:07.6]} 49. Kc5 {[%clk 0:02:07.8]}
49... a5 {[%clk 0:00:04.6]} 50. Kd5 {[%clk 0:02:07.5]} 50... Kb6 {[%clk
0:00:04.4]} 51. Kxe5 {[%clk 0:02:08.9]} 51... Kc5 {[%clk 0:00:06]} 52. Kf5
{[%clk 0:02:10.5]} 52... Kb4 {[%clk 0:00:07.9]} 53. Kxg5 {[%clk 0:02:12.1]}
53... Kxa4 {[%clk 0:00:09.8]} 54. f4 {[%clk 0:02:13.8]} 54... Kb3 {[%clk
0:00:10.9]} 55. f5 {[%clk 0:02:15.4]} 55... a4 {[%clk 0:00:12.8]} 56. f6 {[%clk
0:02:17.3]} 56... a3 {[%clk 0:00:14.6]} 57. f7 {[%clk 0:02:19.2]} 57... a2
{[%clk 0:00:16.5]} 58. f8=Q {[%clk 0:02:21.1]} 58... a1=Q {[%clk 0:00:18.4]} 59.
Qf7+ {[%clk 0:02:21.5]} 59... Kb4 {[%clk 0:00:18.9]} 60. Qf4+ {[%clk 0:02:19]}
60... Kb5 {[%clk 0:00:18.6]} 61. Kxh5 {[%clk 0:02:19.4]} 61... Qh8+ {[%clk
0:00:18.1]} 62. Kg4 {[%clk 0:02:20.8]} 62... Qg7+ {[%clk 0:00:18.3]} 63. Qg5+
{[%clk 0:02:21.9]} 1-0